bitfinex/quotes_SOLUSD_20250529
["timestamp","ask_amount","ask_price","bid_price","bid_amount"]
[1748544646420,5.93965312,168.36,168.33,31.58713151]
[1748544647653,5.93965312,168.36,168.33,9.86]
[1748544649215,42.51591744,168.36,168.33,9.86]
[1748544650109,5.93965312,168.36,168.33,9.86]
[1748544650841,27.66678463,168.36,168.33,9.86]
[1748544654342,27.66678463,168.36,168.3,6.0765]
[1748544654343,21.72713151,168.34,168.3,6.0765]
[1748544654547,21.72713151,168.31,168.29,9.84]
[1748544654858,27.66890215,168.3,168.29,9.84]
[1748544655222,64.74890215,168.3,168.29,9.84]
[1748544655844,101.33046027,168.3,168.24,9.84]
[1748544656057,21.72713151,168.25,168.24,9.84]
[1748544656725,21.72713151,168.27,168.24,9.84]
[1748544656925,27.67031467,168.26,168.24,9.84]
[1748544657837,21.72713151,168.25,168.24,9.84]
[1748544658939,27.67066791,168.25,168.24,9.84]
[1748544659325,42.52950892,168.25,168.22,6.0094]
[1748544659527,21.72713151,168.23,168.22,15.8494]
[1748544659922,21.72713151,168.24,168.22,15.8494]
[1748544660750,21.72713151,168.24,168.22,6.0094]
[1748544661061,21.72713151,168.24,168.22,15.8494]
[1748544661433,5.944243,168.23,168.22,15.8494]
[1748544662937,27.67137451,168.23,168.22,9.84]
[1748544663141,27.67137451,168.23,168.2,1.19590098]
[1748544663142,79.61198201,168.23,168.2,1.19590098]
[1748544663332,21.72713151,168.21,168.2,1.19590098]
[1748544664165,57.8848505,168.23,168.2,1.19590098]
[1748544664460,21.72713151,168.22,168.2,1.19590098]
[1748544664770,21.72713151,168.24,168.2,22.92303249]
[1748544666141,21.72713151,168.24,168.21,6.5833]
[1748544667443,27.67112436,168.24,168.21,6.5833]
[1748544668151,5.94247682,168.28,168.21,28.31043151]
[1748544668351,21.72713151,168.26,168.22,21.72713151]
[1748544668660,21.72713151,168.26,168.23,9.84]
[1748544669074,14.8533579,168.32,168.23,31.56713151]
[1748544669241,21.72713151,168.28,168.24,24.87393151]
[1748544669435,21.72713151,168.29,168.25,21.72713151]
[1748544670860,5.94247682,168.28,168.25,21.72713151]
[1748544671873,51.9333579,168.32,168.26,21.72713151]
[1748544671874,27.66854913,168.31,168.26,21.72713151]
[1748544672168,21.72713151,168.3,168.25,21.72713151]
[1748544672659,5.94141762,168.31,168.25,21.72713151]
[1748544672660,21.72713151,168.29,168.25,21.72713151]
[1748544673662,5.94247682,168.28,168.25,21.72713151]
[1748544675646,21.72713151,168.3,168.24,29.1468]
[1748544675848,21.72713151,168.3,168.25,21.72713151]
[1748544676956,5.94212371,168.29,168.25,21.72713151]
[1748544677362,5.94179592,168.3,168.26,21.72713151]
[1748544677767,5.94179592,168.3,168.27,21.72713151]
[1748544678075,5.94179592,168.3,168.27,28.31563151]
[1748544678463,5.94179592,168.3,168.27,6.5885]
[1748544679472,5.94179592,168.3,168.27,28.31563151]
[1748544680272,5.94071169,168.33,168.28,21.72713151]
[1748544680452,27.6678432,168.33,168.28,21.72713151]
[1748544680773,5.94071169,168.33,168.28,21.72713151]
[1748544680962,27.6678432,168.33,168.28,21.72713151]
[1748544681471,21.72713151,168.32,168.27,28.31563151]
[1748544681779,21.72713151,168.31,168.27,6.5885]
[1748544682165,21.72713151,168.3,168.27,6.5885]
[1748544682473,21.72713151,168.29,168.25,21.72713151]
[1748544683581,5.94247682,168.28,168.25,21.72713151]
[1748544683885,5.94177064,168.3,168.26,47.72713151]
[1748544684964,5.94177064,168.3,168.28,21.72713151]
[1748544686483,21.72713151,168.32,168.28,21.72713151]
[1748544686869,27.6678432,168.33,168.29,21.72713151]
[1748544687269,27.6678432,168.33,168.29,9.84]
[1748544688166,21.72713151,168.32,168.29,9.84]
[1748544688384,21.72713151,168.3,168.29,9.84]
[1748544688593,14.85266159,168.32,168.29,9.84]
[1748544688760,5.94035879,168.34,168.29,9.84]
[1748544689291,21.72713151,168.32,168.29,9.84]
[1748544690697,57.85125578,168.34,168.29,9.84]
[1748544690865,21.72713151,168.3,168.29,9.84]
[1748544691192,21.72713151,168.31,168.29,9.84]
[1748544691369,21.72713151,168.3,168.29,9.84]
[1748544692789,27.66890215,168.3,168.29,9.84]
[1748544693800,5.94177064,168.3,168.29,9.84]
[1748544694496,5.94177064,168.3,168.27,21.72713151]
[1748544694676,5.94141762,168.31,168.27,21.72713151]
[1748544695592,21.72713151,168.3,168.26,57.56713151]
[1748544695880,21.72713151,168.3,168.26,35.84]
[1748544696675,5.94212371,168.29,168.26,35.84]
[1748544697591,5.94212371,168.29,168.26,57.56713151]
[1748544697890,5.94187529,168.3,168.26,57.56713151]
[1748544698779,21.72713151,168.32,168.27,21.72713151]
[1748544698971,27.6678432,168.33,168.28,21.72713151]
[1748544699499,27.6678432,168.33,168.26,35.84]
[1748544699500,27.66752636,168.34,168.3,21.72713151]
[1748544699788,5.94039485,168.34,168.3,21.72713151]
[1748544700361,5.94039485,168.34,168.31,21.72713151]
[1748544701171,5.94039485,168.34,168.32,9.84]
[1748544702368,27.66752636,168.34,168.32,9.84]
[1748544702802,5.94039485,168.34,168.32,9.84]
[1748544702973,27.66752636,168.34,168.32,9.84]
[1748544704303,5.94039485,168.34,168.32,9.84]
[1748544706694,27.66752636,168.34,168.32,9.84]
[1748544709495,5.94039485,168.34,168.32,9.84]
[1748544709716,5.94004341,168.35,168.32,9.84]
[1748544711122,20.78709009,168.38,168.32,9.84]
[1748544711418,21.72713151,168.36,168.32,9.84]
[1748544712001,20.78709009,168.38,168.32,9.84]
[1748544712206,21.72713151,168.36,168.32,9.84]
[1748544713023,20.78709009,168.38,168.32,31.56713151]
[1748544713229,27.66678463,168.36,168.32,31.56713151]
[1748544713528,27.66678463,168.36,168.32,9.84]
[1748544716437,42.51591744,168.36,168.32,9.84]
[1748544716603,21.72713151,168.35,168.32,9.84]
[1748544716929,20.78878593,168.36,168.32,9.84]
[1748544717118,42.51591744,168.36,168.32,9.84]
[1748544718940,20.78878593,168.36,168.32,9.84]
[1748544719227,21.72713151,168.36,168.32,9.84]
[1748544720417,20.78508224,168.39,168.32,9.84]
[1748544720418,21.72713151,168.33,168.32,9.84]
[1748544720623,21.72713151,168.33,168.29,32.044]
[1748544720624,21.72713151,168.33,168.27,9.82]
[1748544720838,21.72713151,168.29,168.27,9.82]
[1748544721016,21.72713151,168.3,168.27,9.82]
[1748544722512,21.72713151,168.31,168.27,9.82]
[1748544723831,5.94212371,168.29,168.27,9.82]
[1748544727448,27.66898599,168.3,168.27,9.82]
[1748544727739,27.66868695,168.31,168.27,9.82]
[1748544728042,21.72713151,168.33,168.29,21.72713151]
[1748544728416,5.94106463,168.32,168.29,21.72713151]
[1748544733647,5.94106463,168.32,168.3,9.8]
[1748544734035,27.66819614,168.32,168.3,9.8]
[1748544734240,5.94106463,168.32,168.3,9.8]
[1748544734450,27.66819614,168.32,168.3,9.8]
[1748544734631,21.72713151,168.31,168.3,9.8]
[1748544735031,27.66854913,168.31,168.3,9.8]
[1748544741137,5.94106463,168.32,168.3,9.8]
[1748544741443,21.72713151,168.31,168.3,9.8]
[1748544743428,27.66854913,168.31,168.3,9.8]
[1748544748443,5.94141762,168.31,168.3,9.8]
[1748544748648,27.66819614,168.32,168.3,9.8]
[1748544749032,5.94106463,168.32,168.3,9.8]
[1748544750245,5.93894761,168.38,168.31,47.72713151]
[1748544750430,21.72713151,168.37,168.33,21.72713151]
[1748544750631,5.93965312,168.36,168.32,21.72713151]
[1748544751033,27.66678463,168.36,168.32,21.72713151]
[1748544751240,5.93942603,168.37,168.33,21.72713151]
[1748544752035,5.93942603,168.37,168.34,47.72713151]
[1748544752943,5.93907877,168.38,168.34,47.72713151]
[1748544754133,5.93824228,168.4,168.34,47.72713151]
[1748544754333,21.72713151,168.39,168.34,47.72713151]
[1748544756051,5.93894761,168.38,168.35,57.52713151]
[1748544761662,5.93894761,168.38,168.35,31.52713151]
[1748544761963,5.93894761,168.38,168.36,21.72713151]
[1748544762649,5.93824228,168.4,168.36,21.72713151]
[1748544763464,5.93824228,168.4,168.37,21.72713151]
[1748544763670,5.93824228,168.4,168.38,21.72713151]
[1748544765501,5.93788967,168.41,168.38,21.72713151]
[1748544768057,20.78034629,168.43,168.38,21.72713151]
[1748544768252,21.72713151,168.42,168.38,21.72713151]
[1748544769446,5.93788967,168.41,168.37,21.72713151]
[1748544770474,20.78034629,168.43,168.38,21.72713151]
[1748544770673,21.72713151,168.42,168.38,21.72713151]
[1748544771877,14.84106313,168.46,168.41,21.72713151]
[1748544772066,14.84106313,168.46,168.41,31.50713151]
[1748544772067,5.93647966,168.45,168.41,31.50713151]
[1748544772369,20.7771904,168.46,168.42,21.72713151]
[1748544774167,5.93612727,168.46,168.42,21.72713151]
[1748544774551,5.93612727,168.46,168.43,21.72713151]
[1748544775044,5.93612727,168.46,168.42,21.72713151]
[1748544775257,5.93612727,168.46,168.42,9.2163]
[1748544775662,5.93612727,168.46,168.43,21.72713151]
[1748544776263,5.93612727,168.46,168.42,30.94343151]
[1748544776479,5.93612727,168.46,168.42,27.94113151]
[1748544776861,27.66325878,168.46,168.42,27.94113151]
[1748544777061,5.93612727,168.46,168.43,21.72713151]
[1748544777764,5.93612727,168.46,168.44,21.72713151]
[1748544778576,21.72713151,168.48,168.44,21.72713151]
[1748544779460,20.77189006,168.5,168.44,21.72713151]
[1748544779688,21.72713151,168.48,168.44,21.72713151]
[1748544780057,20.77189006,168.5,168.44,21.72713151]
[1748544780288,21.72713151,168.48,168.44,21.72713151]
[1748544780956,5.93577491,168.47,168.44,21.72713151]
[1748544782283,5.9355347,168.48,168.45,21.72713151]
[1748544782660,5.9355347,168.48,168.44,21.72713151]
[1748544783455,5.9355347,168.48,168.45,21.72713151]
[1748544784465,21.72713151,168.47,168.42,32.214]
[1748544784781,21.72713151,168.47,168.42,53.94113151]
[1748544784963,21.72713151,168.48,168.44,21.72713151]
[1748544785285,21.72713151,168.49,168.44,21.72713151]
[1748544785575,21.72713151,168.49,168.45,21.72713151]
[1748544787079,5.9354226,168.48,168.45,21.72713151]
[1748544787472,5.9354226,168.48,168.42,32.214]
[1748544787473,27.66184961,168.5,168.46,21.72713151]
[1748544787658,5.9347181,168.5,168.46,21.72713151]
[1748544787975,27.66184961,168.5,168.46,21.72713151]
[1748544788561,5.9347181,168.5,168.46,21.72713151]
[1748544789661,5.9347181,168.5,168.43,27.58798331]
[1748544789861,5.9347181,168.5,168.46,21.72713151]
[1748544790384,27.66184961,168.5,168.45,21.72713151]
[1748544790584,21.72713151,168.49,168.45,21.72713151]
[1748544791484,36.56392676,168.5,168.43,21.65084886]
[1748544791780,36.56392676,168.5,168.45,21.72713151]
[1748544792276,21.72713151,168.48,168.43,24.72833151]
[1748544792479,21.72713151,168.47,168.43,21.72713151]
[1748544792659,14.83679525,168.5,168.44,21.72713151]
[1748544792858,36.56392676,168.5,168.45,21.72713151]
[1748544793074,14.83679525,168.5,168.45,21.72713151]
[1748544793278,36.56392676,168.5,168.45,21.72713151]
[1748544793868,20.77151335,168.5,168.45,21.72713151]
[1748544794076,27.66184961,168.5,168.45,21.72713151]
[1748544796666,21.72713151,168.5,168.46,21.72713151]
[1748544797474,21.72713151,168.5,168.45,21.72713151]
[1748544798000,21.72713151,168.5,168.46,9.76]
[1748544798499,20.76904817,168.52,168.46,31.48713151]
[1748544798704,21.72713151,168.51,168.46,31.48713151]
[1748544798869,21.72713151,168.5,168.46,9.76]
[1748544799070,21.72713151,168.49,168.46,9.76]
[1748544801168,5.9354226,168.48,168.46,9.76]
[1748544803929,5.9354226,168.48,168.42,6.214]
[1748544803930,21.72713151,168.47,168.42,6.214]
[1748544804095,21.72713151,168.44,168.42,6.214]
[1748544805099,21.72713151,168.44,168.41,9.76]
[1748544805100,5.9375371,168.42,168.41,9.76]
[1748544805418,27.66466861,168.42,168.41,9.76]
[1748544805918,42.50851138,168.42,168.36,95.24]
[1748544806107,21.72713151,168.38,168.36,95.24]
[1748544806789,20.78137987,168.42,168.36,95.24]
[1748544806988,21.72713151,168.4,168.36,116.96713151]
[1748544807213,5.93859492,168.39,168.36,116.96713151]
[1748544807396,5.93859492,168.39,168.37,21.72713151]
[1748544807596,36.57097428,168.42,168.37,21.72713151]
[1748544808512,21.72713151,168.41,168.37,21.72713151]
[1748544808922,27.66502118,168.41,168.37,21.72713151]
[1748544809600,5.93577491,168.47,168.42,18.64964886]
[1748544809803,2.9659,168.53,168.44,21.72713151]
[1748544810018,21.72713151,168.5,168.45,21.72713151]
[1748544810610,21.72713151,168.49,168.45,21.72713151]
[1748544810816,27.66249268,168.49,168.45,21.72713151]
[1748544811001,21.72713151,168.48,168.43,31.48713151]
[1748544812329,5.93577491,168.47,168.43,9.76]
[1748544812494,21.72713151,168.46,168.43,9.76]
[1748544815125,21.72713151,168.47,168.43,9.76]
[1748544816329,50.43940279,168.52,168.43,9.76]
[1748544816330,21.72713151,168.46,168.43,9.76]
[1748544817836,5.93647966,168.45,168.43,9.76]
[1748544820940,21.72713151,168.44,168.43,9.76]
[1748544821867,27.66396361,168.44,168.43,9.76]
[1748544822739,27.66396361,168.44,168.38,2.9178]
[1748544822947,21.72713151,168.41,168.38,9.76]
[1748544824045,5.93824228,168.4,168.38,9.76]
[1748544826355,21.72713151,168.39,168.38,9.76]
[1748544826649,27.66537379,168.4,168.38,9.76]
[1748544832730,27.66572643,168.39,168.38,9.76]
[1748544835262,64.23934526,168.39,168.32,16.0604]
[1748544835429,21.72713151,168.33,168.32,6.3004]
[1748544835823,21.72713151,168.33,168.31,9.76]
[1748544836033,21.72713151,168.32,168.31,9.76]
[1748544836639,21.72713151,168.33,168.31,9.76]
[1748544837239,27.66793121,168.33,168.31,9.76]
[1748544837554,21.72713151,168.35,168.31,9.76]
[1748544837932,21.72713151,168.35,168.31,31.48713151]
[1748544838950,27.66607912,168.38,168.33,21.72713151]
[1748544840650,27.66673825,168.37,168.33,21.72713151]
[1748544841351,5.93960674,168.37,168.34,21.72713151]
[1748544841528,5.93905102,168.38,168.34,21.72713151]
[1748544841729,5.93905102,168.38,168.35,21.72713151]
[1748544842143,5.93905102,168.38,168.35,27.80073151]
[1748544843475,21.72713151,168.41,168.36,21.72713151]
[1748544843834,21.72713151,168.4,168.36,21.72713151]
[1748544844445,5.93859492,168.39,168.36,21.72713151]
[1748544845858,5.93859492,168.39,168.35,27.80073151]
[1748544848057,5.93859492,168.39,168.36,21.72713151]
[1748544848256,5.93859492,168.39,168.35,27.80073151]
[1748544848870,5.93859492,168.39,168.36,21.72713151]
[1748544849570,21.72713151,168.43,168.38,21.72713151]
[1748544850666,5.9375371,168.42,168.38,21.72713151]
[1748544851940,5.9375371,168.42,168.39,21.72713151]
[1748544852773,20.77836296,168.45,168.39,21.72713151]
[1748544852975,21.72713151,168.43,168.39,21.72713151]
[1748544854236,21.72713151,168.42,168.38,21.72713151]
[1748544855276,5.93788967,168.41,168.38,21.72713151]
[1748544855452,27.66502118,168.41,168.37,31.48713151]
[1748544856262,21.72713151,168.39,168.37,9.76]
[1748544857352,27.66607912,168.38,168.37,9.76]
[1748544857755,27.66607912,168.38,168.32,34.42043151]
[1748544857974,21.72713151,168.37,168.32,34.42043151]
[1748544858856,5.93965312,168.36,168.32,12.6933]
[1748544859186,21.72713151,168.34,168.32,9.74]
[1748544860371,21.72713151,168.35,168.32,9.74]
[1748544861276,27.6674903,168.34,168.32,9.74]
[1748544863685,14.84913281,168.36,168.32,9.74]
[1748544863686,21.72713151,168.35,168.32,9.74]
[1748544865661,5.94035879,168.34,168.32,9.74]
[1748544869781,27.6674903,168.34,168.32,9.74]
[1748544869965,21.72713151,168.33,168.32,9.74]
[1748544871959,27.6678432,168.33,168.32,9.74]
[1748544874263,27.6678432,168.33,168.27,57.21473151]
[1748544874462,21.72713151,168.31,168.27,42.2799]
[1748544875308,21.72713151,168.29,168.27,16.2799]
[1748544876086,5.94247682,168.28,168.27,16.2799]
[1748544878879,27.66960833,168.28,168.27,9.74]
[1748544880498,5.94247682,168.28,168.27,9.74]
[1748544880710,27.66960833,168.28,168.27,9.74]
[1748544880871,5.94247682,168.28,168.27,9.74]
[1748544882680,27.66960833,168.28,168.27,9.74]
[1748544891503,42.52580039,168.28,168.23,7.42656837]
[1748544891805,21.72713151,168.25,168.23,7.42656837]
[1748544892013,21.72713151,168.26,168.23,7.42656837]
[1748544892504,20.79866888,168.28,168.23,7.42656837]
[1748544892505,21.72713151,168.27,168.23,7.42656837]
[1748544893082,21.72713151,168.27,168.23,29.15369988]
[1748544893604,5.94318316,168.26,168.23,29.15369988]
[1748544894387,14.85619206,168.28,168.24,21.72713151]
[1748544894388,5.94247682,168.28,168.24,21.72713151]
[1748544894589,5.94247682,168.28,168.25,21.72713151]
[1748544895605,5.94247682,168.28,168.25,9.74]
[1748544895795,27.66960833,168.28,168.25,9.74]
[1748544900404,21.72713151,168.27,168.25,9.74]
[1748544900919,21.72713151,168.26,168.25,9.74]
[1748544902421,5.9435364,168.25,168.23,1.10466837]
[1748544902589,21.72713151,168.24,168.23,1.10466837]
[1748544904905,27.67102119,168.24,168.23,1.10466837]
[1748544911736,77.62936157,168.28,168.23,1.10466837]
[1748544911737,11.6,168.28,168.23,1.10466837]
[1748544911906,5.94282997,168.27,168.24,21.72713151]
[1748544912497,5.94282997,168.27,168.23,22.83179988]
[1748544912825,27.66996148,168.27,168.23,22.83179988]
[1748544913323,5.94282997,168.27,168.24,21.72713151]
[1748544913537,5.94282997,168.27,168.23,22.83179988]
[1748544913835,27.66996148,168.27,168.23,22.83179988]
[1748544915127,5.94282997,168.27,168.23,22.83179988]
[1748544915792,5.94282997,168.27,168.24,21.72713151]
[1748544916409,5.94282997,168.27,168.25,21.72713151]
[1748544917429,5.94247682,168.28,168.24,21.72713151]
[1748544917999,5.94247682,168.28,168.25,6.509]
[1748544920398,14.85473239,168.3,168.25,28.23613151]
[1748544920616,21.72713151,168.29,168.25,28.23613151]
[1748544921309,36.5818639,168.3,168.25,28.23613151]
[1748544922622,42.52363454,168.3,168.25,28.23613151]
[1748544922924,5.94177064,168.3,168.28,21.72713151]
[1748544923104,5.94106463,168.32,168.29,21.72713151]
[1748544923913,5.94000594,168.35,168.31,21.72713151]
[1748544924124,5.94000594,168.35,168.32,21.72713151]
[1748544924503,21.72713151,168.37,168.32,31.44713151]
[1748544924504,5.93965312,168.36,168.32,31.44713151]
[1748544924905,5.93965312,168.36,168.33,21.72713151]
[1748544925828,5.93965312,168.36,168.32,9.72]
[1748544925829,5.93965312,168.36,168.34,21.72713151]
[1748544926813,5.93894761,168.38,168.34,21.72713151]
[1748544928411,20.78631665,168.38,168.34,21.72713151]
[1748544928736,5.94035879,168.34,168.32,9.72]
[1748544928910,27.6674903,168.34,168.32,9.72]
[1748544931444,21.72713151,168.33,168.32,9.72]
[1748544931612,27.6674903,168.34,168.32,9.72]
[1748544933210,20.79002079,168.35,168.32,9.72]
[1748544933416,42.5171523,168.35,168.32,9.72]
[1748544934519,5.94000594,168.35,168.32,31.44713151]
[1748544934733,5.94000594,168.35,168.33,21.72713151]
[1748544934932,36.57511048,168.38,168.34,21.72713151]
[1748544935232,5.93930035,168.37,168.34,21.72713151]
[1748544936515,5.93930035,168.37,168.33,6.1297]
[1748544936721,5.93930035,168.37,168.33,27.85683151]
[1748544937928,5.93930035,168.37,168.34,21.72713151]
[1748544938132,42.77788967,168.41,168.35,21.72713151]
[1748544938336,42.77788967,168.41,168.36,21.72713151]
[1748544938337,27.66502118,168.41,168.36,21.72713151]
[1748544939131,21.72713151,168.4,168.36,21.72713151]
[1748544939332,5.93859492,168.39,168.36,21.72713151]
[1748544941924,27.66325878,168.46,168.38,21.72713151]
[1748544942242,5.93612727,168.46,168.42,21.72713151]
[1748544942450,5.93612727,168.46,168.43,21.72713151]
[1748544942834,5.93612727,168.46,168.42,21.72713151]
[1748544943040,5.93612727,168.46,168.43,21.72713151]
[1748544943875,5.93612727,168.46,168.42,21.72713151]
[1748544946452,5.93612727,168.46,168.4,2.9308]
[1748544946638,27.66325878,168.46,168.42,21.72713151]
[1748544946838,21.72713151,168.44,168.4,2.9308]
[1748544947039,21.72713151,168.44,168.4,24.65793151]
[1748544947451,21.72713151,168.45,168.4,2.9308]
[1748544947648,5.9368321,168.44,168.4,24.65793151]
[1748544948843,27.66396361,168.44,168.4,24.65793151]
[1748544950138,5.9368321,168.44,168.41,21.72713151]
[1748544950643,5.93661116,168.45,168.43,21.72713151]
[1748544950850,5.936201,168.46,168.43,21.72713151]
[1748544953142,5.936201,168.46,168.44,21.72713151]
[1748544953938,5.93577491,168.47,168.44,21.72713151]
[1748544956881,5.93577491,168.47,168.4,2.9308]
[1748544956882,21.72713151,168.45,168.4,2.9308]
[1748544957165,36.78,168.46,168.4,21.72713151]
[1748544957349,21.72713151,168.45,168.4,21.72713151]
[1748544957547,5.93718458,168.43,168.39,53.78693151]
[1748544958369,5.93718458,168.43,168.4,21.72713151]
[1748544959372,5.93718458,168.43,168.41,21.72713151]
[1748544959867,5.9368321,168.44,168.41,21.72713151]
[1748544960973,5.9368321,168.44,168.42,21.72713151]
[1748544961654,5.93612727,168.46,168.43,21.72713151]
[1748544961862,5.93612727,168.46,168.42,21.72713151]
[1748544962170,20.77644544,168.46,168.42,21.72713151]
[1748544962481,42.50357695,168.46,168.42,21.72713151]
[1748544963470,5.93612727,168.46,168.42,21.72713151]
[1748544963656,5.93612727,168.46,168.44,21.72713151]
[1748544963851,5.93612727,168.46,168.44,31.40713151]
[1748544964175,5.93577491,168.47,168.44,31.40713151]
[1748544965167,20.77521219,168.47,168.44,9.68]
[1748544965954,42.5023437,168.47,168.44,9.68]
[1748544968847,21.72713151,168.46,168.44,9.68]
[1748544969780,42.5023437,168.47,168.44,9.68]
[1748544972563,21.72713151,168.46,168.44,9.68]
[1748544973769,5.93647966,168.45,168.44,9.68]
[1748544974462,27.66361117,168.45,168.44,9.68]
[1748544975890,27.66361117,168.45,168.39,27.78693151]
[1748544975891,79.26481033,168.45,168.4,9.68]
[1748544976187,21.72713151,168.43,168.4,9.68]
[1748544976387,21.72713151,168.42,168.4,9.68]
[1748544976688,21.72713151,168.41,168.4,9.68]
[1748544977881,21.72713151,168.42,168.4,9.68]
[1748544978185,5.93788967,168.41,168.4,9.68]
[1748544984482,27.66502118,168.41,168.4,9.68]
[1748544987028,5.93788967,168.41,168.4,9.68]
[1748544987377,11.6,168.45,168.4,9.68]
[1748544987378,14.84110723,168.46,168.4,31.40713151]
[1748544987578,21.72713151,168.45,168.41,6.1257]
[1748544987790,27.66361117,168.45,168.41,27.85283151]
[1748544988189,27.66361117,168.45,168.41,6.1257]
[1748544988983,21.72713151,168.44,168.41,6.1257]
[1748544989163,5.93718458,168.43,168.41,6.1257]
[1748544989365,5.93718458,168.43,168.41,27.85283151]
[1748544990360,5.93647966,168.45,168.41,27.85283151]
[1748544991897,27.66361117,168.45,168.41,27.85283151]
[1748544992201,21.72713151,168.44,168.41,6.1257]
[1748544994007,5.93718458,168.43,168.41,6.1257]
[1748544998302,27.66431609,168.43,168.41,6.1257]
[1748544998509,5.93718458,168.43,168.41,6.1257]
[1748545000588,5.93718458,168.43,168.4,9.68]
[1748545003400,20.78014604,168.43,168.4,9.68]
[1748545003930,42.50727755,168.43,168.4,9.68]
[1748545012007,21.72713151,168.42,168.4,9.68]
[1748545012923,21.72713151,168.41,168.4,9.68]
[1748545014634,27.66502118,168.41,168.4,9.68]
[1748545020240,5.93788967,168.41,168.4,9.68]
[1748545021914,5.9375371,168.42,168.4,9.68]
[1748545023137,5.93718458,168.43,168.4,9.68]
[1748545023347,27.66431609,168.43,168.4,9.68]
[1748545023637,21.72713151,168.42,168.4,9.68]
[1748545025739,5.93788967,168.41,168.4,9.68]
[1748545027721,5.9375371,168.42,168.4,9.68]
[1748545029141,5.93713524,168.44,168.41,21.72713151]
[1748545029319,5.93713524,168.44,168.42,21.72713151]
[1748545029720,5.93591915,168.47,168.43,21.72713151]
[1748545029939,5.93591915,168.47,168.44,21.72713151]
[1748545030143,5.93591915,168.47,168.43,21.72713151]
[1748545030725,27.66305066,168.47,168.43,21.72713151]
[1748545037764,5.93591915,168.47,168.44,21.72713151]
[1748545037971,5.93591915,168.47,168.46,21.72713151]
[1748545038149,5.93591915,168.47,168.46,31.34713151]
[1748545038644,5.93507033,168.49,168.46,31.34713151]
[1748545038846,21.72713151,168.48,168.46,9.62]
[1748545039062,21.72713151,168.47,168.46,9.62]
[1748545039763,27.66290642,168.47,168.46,9.62]
[1748545040057,42.5023437,168.47,168.41,9.62]
[1748545040261,21.72713151,168.43,168.41,9.62]
[1748545040834,5.9375371,168.42,168.41,9.62]
[1748545044273,5.93647966,168.45,168.41,31.34713151]
[1748545044573,5.93647966,168.45,168.42,21.72713151]
[1748545044735,5.93647966,168.45,168.41,31.34713151]
[1748545045364,27.66361117,168.45,168.41,31.34713151]
[1748545046838,5.93647966,168.45,168.41,9.62]
[1748545047062,5.93647966,168.45,168.42,21.72713151]
[1748545056057,21.72713151,168.46,168.42,13.8373976]
[1748545056058,13.8373976,168.46,168.42,13.8373976]
[1748545057884,5.93647966,168.45,168.42,13.8373976]
[1748545062906,5.93647966,168.45,168.43,9.62]
[1748545063804,5.93647966,168.45,168.41,13.8373976]
[1748545064008,5.93647966,168.45,168.37,9.75052314]
[1748545064009,13.8373976,168.42,168.37,6.3365]
[1748545064181,13.8373976,168.38,168.36,95.08]
[1748545064369,13.8373976,168.37,168.36,95.08]
[1748545064563,13.8373976,168.38,168.36,95.08]
[1748545065905,21.64271612,168.38,168.36,95.08]
[1748545066415,21.64271612,168.37,168.36,95.08]
[1748545067727,21.64271612,168.38,168.36,95.08]
[1748545068014,20.78384798,168.4,168.36,95.08]
[1748545068015,27.58201647,168.37,168.36,95.08]
[1748545068806,27.58201647,168.37,168.36,9.62]
[1748545069480,64.24201647,168.37,168.36,9.62]
[1748545072290,79.09026734,168.37,168.31,9.6]
[1748545072496,21.64271612,168.32,168.31,9.6]
[1748545072689,21.64271612,168.33,168.31,9.6]
[1748545073087,21.64271612,168.35,168.31,9.6]
[1748545073397,57.44755122,168.37,168.31,9.6]
[1748545073601,21.64271612,168.35,168.31,31.24271612]
[1748545075017,27.58276989,168.35,168.31,31.24271612]
[1748545075198,27.58276989,168.35,168.31,9.6]
[1748545075519,5.94005377,168.35,168.31,9.6]
[1748545075716,21.64271612,168.34,168.31,9.6]
[1748545075925,21.64271612,168.33,168.31,9.6]
[1748545076226,5.94005377,168.35,168.31,31.24271612]
[1748545076722,27.58276989,168.35,168.31,9.6]
[1748545077917,5.93930035,168.37,168.31,31.24271612]
[1748545078118,21.64271612,168.36,168.31,31.24271612]
[1748545078490,21.64271612,168.35,168.31,9.6]
[1748545079522,27.58304074,168.35,168.31,9.6]
[1748545080402,27.58304074,168.35,168.31,31.24271612]
[1748545080723,27.58304074,168.35,168.31,9.6]
[1748545083036,21.64271612,168.33,168.31,9.6]
[1748545083239,21.64271612,168.32,168.31,9.6]